Cogmind - Beta 16.1 @@@ ROGUE MODE // 2026.04.12 @ 20:10:43 Player: Ammie Result: Destroyed by G-34 Mercenary with Small Laser Performance ------------- Evolutions (0) 0 Regions Visited (1) 200 Robots Destroyed (24) 120 Value Destroyed (636) 636 Prototype IDs (0) 0 Alien Tech Used (0) 0 Bonus (0) 0 TOTAL SCORE: 956 Bonus ------- None Cogmind --------- Core Integrity 0/250 Matter 295/300 Energy 100/100 System Corruption 0% Temperature Critical (547) Movement Treading (160) Location -10/Materials Parts ------- > --- POWER (1) -------- Ion Engine > --- PROPULSION (2) --- Light Treads > --- UTILITY (2) ------ Medium Storage Unit > --- WEAPON (2) ------- Small Laser Particle Gun > --- INVENTORY (10) --- Ion Engine Ion Engine Light Ion Engine Small Storage Unit Small Laser Grenade Launcher Peak State ------------ > --- POWER ------------ Ion Engine > --- PROPULSION ------- Light Treads Light Treads > --- UTILITY ---------- Small Storage Unit Structural Scanner > --- WEAPON ----------- EM Pulse Gun Light Assault Rifle > --- INVENTORY -------- Light Ion Engine Light Treads Small Laser [Rating: 7] Favorites ----------- Power Ion Engine Engine Ion Engine Propulsion Light Treads Treads Light Treads Utility Medium Storage Unit Device Structural Scanner Storage Medium Storage Unit Weapon EM Pulse Gun Energy Gun EM Pulse Gun Ballistic Gun Light Assault Rifle Build | -11 -10 ------- Run | Yrd Mat Slots Evolved . | . . Power . | . . Propulsion . | . . Utility . | . . Weapon . | . . Parts Attached 14 | 6 8 Power 3 | 1 2 Engine 3 | 1 2 Core . | . . Reactor . | . . Propulsion 3 | 2 1 Treads 3 | 2 1 Leg . | . . Wheel . | . . Hover . | . . Flight . | . . Utility 3 | 1 2 Device 1 | . 1 Storage 2 | 1 1 Processor . | . . Hackware . | . . Protection . | . . Artifact . | . . Weapon 5 | 2 3 Energy Gun 4 | 1 3 Energy Cannon . | . . Ballistic Gun 1 | 1 . Ballistic Cannon . | . . Launcher . | . . Special Weapon . | . . Impact Weapon . | . . Slashing Weapon . | . . Piercing Weapon . | . . Special Melee Weapon . | . . Unidentified Prototypes . | . . Parts Lost 6 | . 6 Power 1 | . 1 Propulsion 2 | . 2 Utility 1 | . 1 Weapon 2 | . 2 Highest Loss Streak 5 | . 5 To Critical Strikes . | . . Average Backups 6 | 1 6 Power 3 | . 3 Propulsion . | . . Utility . | . . Weapon 1 | . 1 Tool/Special . | . . Unused Backups 3 | . 3 Power 2 | . 2 Propulsion . | . . Utility . | . . Weapon 1 | . 1 Tool/Special . | . . Average Slot Usage (%) 94 | . 94 Engine 13 | . 13 Treads 27 | . 27 Device 10 | . 10 Storage 14 | . 14 Energy Gun 14 | . 14 Ballistic Gun 11 | . 11 Peak Build Rating 7 | 6 7 Average Rating 6 | 5 6 On Entrance 3 | . 6 Avg Prop Armor Cover (%) . | . . Naked Turns . | . . Heaviest Build 19 | 13 19 Greatest Support 40 | 40 40 Greatest Overweight (x) . | . . Average Overweight (x) . | . . Largest Inventory Capacity 10 | 8 10 Average Capacity 9 | 7 9 Most Carried 8 | 2 8 Average Carried 6 | 1 6 Final Capacity 10 | 8 10 Final Carried 6 | 2 6 Class Distribution -------------------- 100% | Mutant Dominant Class ---------------- Mutant | -10/Materials Resources | -11 -10 ----------- Run | Yrd Mat Matter Collected 375 | 104 271 Remotely . | . . Salvage Created 959 | . 959 Parts 56 | . 56 Haulers Intercepted 1 | . 1 Recyclers Shooed . | . . Parts Field Recycled . | . . Retrieved Matter . | . . Parts Self-Destructed . | . . Prevented . | . . Parts Restored . | . . Kills | -11 -10 ------- Run | Yrd Mat Combat Hostiles Destroyed 18 | . 18 Guns 17 | . 17 AOE 1 | . 1 Classes Destroyed 6 | . 6 Worker 1 | . 1 Hauler 1 | . 1 Recycler 1 | . 1 Watcher 3 | . 3 Swarmer 3 | . 3 Grunt 15 | . 15 Best Kill Streak 6 | . 6 Combat Bots Only 5 | . 5 Max Kills in Single Turn 2 | . 2 Gunslinging 1 | . 1 Exploded 1 | . 1 Melee . | . . Uniques/NPCs Destroyed . | . . Combat | -11 -10 -------- Run | Yrd Mat Hostile Shots Fired 113 | . 113 Missed 26 | . 26 Hits 87 | . 87 Projectile 87 | . 87 Damage Taken 1064 | . 1064 Core 252 | . 252 Absorbed by Shields . | . . Core Remaining (%) 100 | 100 . Volleys Fired 101 | . 101 Largest 2 | . 2 Hottest 105 | . 105 Shots Fired 171 | . 171 Gun 171 | . 171 Cannon . | . . Launcher . | . . Special . | . . Kinetic 55 | . 55 Thermal 53 | . 53 Explosive . | . . Electromagnetic 63 | . 63 Robot Hit Streak 8 | . 8 Robot Miss Streak 5 | . 5 Penetration Max . | . . Secondary Targets 2 | . 2 Max Gunslinging Chain 1 | . 1 Shots Hit Robots 107 | . 107 Core Hits 42 | . 42 Critical Kills . | . . Critical Parts Destroyed . | . . Critical Strikes 1 | . 1 Corrupt 1 | . 1 Melee Attacks . | . . Impact . | . . Slashing . | . . Piercing . | . . Sneak Attacks . | . . Combat Hostiles . | . . Follow-up Attacks . | . . Damage Inflicted 1390 | . 1390 Guns 1322 | . 1322 Cannons . | . . Explosions 67 | . 67 Melee . | . . Ramming 1 | . 1 Kinetic 242 | . 242 Thermal 504 | . 504 Explosive . | . . Electromagnetic 643 | . 643 Impact . | . . Slashing . | . . Piercing . | . . Highest Corruption . | . . Average Corruption . | . . Corruption Purged . | . . Corruption Blocked . | . . Overload Shots . | . . Overflow Damage . | . . Projectiles . | . . Explosions . | . . Melee . | . . Knockbacks . | . . Impact . | . . Kinetic . | . . Secondary . | . . Self-Inflicted Damage 50 | . 50 Shots 1 | . 1 Rammed 1 | . 1 Targets Rammed 1 | . 1 Kicked . | . . Crushed . | . . Highest Temperature 541 | . 541 Average Temperature 73 | . 73 Received Heat Transfer 492 | . 492 Effects 4 | . 4 Shutdowns 1 | . 1 Energy Bleed 1 | . 1 Short Circuit 1 | . 1 Damage (core) 1 | . 1 Siege Activations . | . . Martial Activations . | . . Shielding Activations . | . . Robots Disrupted . | . . Combat Hostiles . | . . Robots Corrupted . | . . Combat Hostiles . | . . Parts Fried 3 | . 3 Impact Corruptions . | . . Robots Melted . | . . Combat Hostiles . | . . Parts Melted . | . . Heat Transferred 1083 | . 1083 Parts Sabotaged . | . . Parts Stolen . | . . Parts Stripped . | . . Power Chain Reactions 2 | . 2 Alert | -11 -10 ------- Run | Yrd Mat Maximum Alert Level 1 | . 1 Low Security (%) 97 | 100 97 Level 1 2 | . 2 Level 2 . | . . Level 3 . | . . Level 4 . | . . Level 5 . | . . High Security . | . . Max Security . | . . Peak Influence 231 | . 231 Initial . | . . Average 39 | . 42 Influence Increases 586 | . 586 Destroy 0b10 Robot/C 360 | . 360 Destroy 0b10 Robot/NC 30 | . 30 Destroy Leader 98 | . 98 Successful Hack 16 | . 16 Destroy Structure 7 | . 7 Lose Combat Pursuer 75 | . 75 Influence Decreases 361 | . 361 Time Decay 301 | . 301 Lost Part 60 | . 60 Squads Dispatched 6 | . 6 Investigation 4 | . 4 Extermination . | . . Reinforcement 2 | . 2 Assault . | . . Garrison . | . . Intercept . | . . Searches Triggered . | . . Construction Impeded . | . . Haulers Reinforced . | . . Active Scanning Responses . | . . Cargo Convoy Interrupts . | . . Stealth | -11 -10 --------- Run | Yrd Mat Distress Signals . | . . Communications Jammed . | . . Distress Signals . | . . Times Spotted 31 | . 31 Peak Tracking Total 5 | . 5 Tactical Retreats 4 | . 4 Traps | -11 -10 ------- Run | Yrd Mat Traps Triggered 3 | . 3 Indirectly . | . . Trap Hack Attempts . | . . Triggered . | . . Disarmed . | . . Reprogrammed . | . . Reused . | . . Traps Extracted . | . . Installed . | . . Triggered . | . . Machines | -11 -10 ---------- Run | Yrd Mat Machines Disabled . | . . Max in Single Turn . | . . Machines Repaired . | . . Machines Dismantled . | . . Machines Sabotaged . | . . Overloaded Fab Kills . | . . Hacking | -11 -10 --------- Run | Yrd Mat Machines Accessed 5 | . 5 Terminals 5 | . 5 Fabricators . | . . Repair Stations . | . . Recycling Units . | . . Scanalyzers . | . . Garrison Access . | . . Total Hacks 10 | . 10 Successful 4 | . 4 Failed 6 | . 6 Catastrophic 1 | . 1 Database Lockouts . | . . Manual 9 | . 9 Terminals 10 | . 10 Fabricators . | . . Repair Stations . | . . Recycling Units . | . . Scanalyzers . | . . Garrison Access . | . . Terminal Hacks 1 | . 1 Registered Components 1 | . 1 Fabricator Hacks . | . . Repair Station Hacks . | . . Recycling Unit Hacks . | . . Scanalyzer . | . . Garrison Access Hacks . | . . Unauthorized Hacks 3 | . 3 Terminals 3 | . 3 Botnet 2 | . 2 Operators 1 | . 1 Fabricators . | . . Repair Stations . | . . Recycling Units . | . . Scanalyzers . | . . Garrison Access . | . . Data Cores Recovered . | . . Used . | . . Hacking Detections 4 | . 4 Full Trace Events 1 | . 1 Feedback Events . | . . Feedback Blocked . | . . Robot Schematics Acquired . | . . Robots Built . | . . Authchips . | . . Time . | . . Total Robot Build Rating . | . . Part Schematics Acquired . | . . Parts Built . | . . Authchips . | . . Time . | . . Total Part Build Rating . | . . Part Studies Acquired . | . . Parts Repaired . | . . Time . | . . Parts Recycled . | . . Recycled Matter . | . . Retrieved Matter . | . . Retrieved Components . | . . Parts Scanalyzed . | . . Part Schematics Acquired . | . . Parts Damaged . | . . Bothacking | -11 -10 ------------ Run | Yrd Mat Used RIF Installer . | . . Robots Hacked . | . . Non-combat . | . . Combat . | . . Robot Hacks Applied . | . . Relay Couplers Released . | . . Fabnet Peak Effective % . | . . Robots Rewired . | . . Allies Hacked . | . . Hacks Repelled . | . . Allies | -11 -10 -------- Run | Yrd Mat Total Allies . | . . Largest Group . | . . Highest-Rated Group . | . . Highest-Rated Ally . | . . Total Orders . | . . Ally Attacks . | . . Total Damage . | . . Kills . | . . Allies Corrupted . | . . Allies Melted . | . . Intel | -11 -10 ------- Run | Yrd Mat Active Infowar (turns) 937 | . 937 Structural 937 | . 937 Robot Analysis Total . | . . Derelict Logs Recovered . | . . Drone Launches . | . . Drone Recoveries . | . . Exploration | -11 -10 ------------- Run | Yrd Mat Turns Passed 1253 | 73 1180 Spaces Moved 523 | 41 482 Core 3 | 3 . Treads 520 | 38 482 Legs . | . . Wheels . | . . Hover . | . . Flight . | . . Fastest Speed 50 | 50 160 Average Speed 159 | 151 160 Slowest Speed 160 | 160 160 Overloaded Moves . | . . Propulsion Burnouts . | . . Robots Hopped . | . . Potential Cave-ins . | . . Cave-ins Triggered . | . . Exploration Rate (%) 35 | 3 68 Regions Visited 1 Branch Regions . Pre-discovered Areas . | . . Known Exits Taken . | . . Unknown Exits Taken 1 | 1 . Scrap Searched . | . . Spaces Dug . | . . Terrain Destroyed 6 | . 6 Melee . | . . Projectile . | . . AOE 6 | . 6 Terrain Rammed . | . . Walls Destroyed . | . . Machines Disabled . | . . Actions | -11 -10 --------- Run | Yrd Mat Total 777 | 49 728 Wait 132 | . 132 Move 522 | 40 482 Hop . | . . Pick Up 7 | 3 4 Fast Attach 7 | 5 2 Attach 4 | 1 3 Detach . | . . Swap 3 | . 3 Drop . | . . Fire 101 | . 101 Melee . | . . Ram . | . . Kick . | . . Crush 1 | . 1 Escape Stasis . | . . Rewire . | . . Trap . | . . Miscellaneous . | . . Route ------- -11/Scrapyard -10/Materials (discovered 1 exit: [*Mat]) History --------- Turn | Location | Event 3 | -11/Scrapyard | Discovered new exit (range 16) 74 | -11/Scrapyard | Entered Materials 306 | -10/Materials | Build established: Mutant 682 | -10/Materials | Discovered new exit (range 5) 1130 | -10/Materials | Lost 5 parts (1p1n1u2w) 1153 | -10/Materials | Core integrity fell below 50% 1241 | -10/Materials | Core integrity fell below 20% 1254 | -10/Materials | Destroyed by G-34 Mercenary with Small Laser Last Messages --------------- 01164_ K-01 Serf cleans the Fusion Modulator. 01193_ Acquired Particle Gun. 01194_ K-01 Serf cleans the Fusion Modulator. 01200_ K-01 Serf collects debris. 01202_ ALERT: Alarm triggered, dispatching investigation squad. 01205_ K-01 Serf collects debris. 01206_ G-34 Mercenary destroyed. 01214_ Acquired 10 matter. 01222_ G-34 Mercenary destroyed. 01222_ Switching to secondary target: G-34 Mercenary. 01222_ Lgt. Treads destroyed. 01223_ K-01 Serf collects debris. 01225_ G-34 Mercenary destroyed. 01226_ K-01 Serf collects debris. 01240_ G-34 Mercenary destroyed. 01244_ Power failure, Ion Engine shutdown. 01251_ Overheating: Energy bleed (-34). 01252_ Ion Engine broken. 01252_ Overheating: Short circuit. 01253_ Overheating: Core damaged (-27). Map ----- +----------------------------------------------------+ | ??????????????????????????## ###### #"Y"##T#### | | ??????????????????????????## ! % | | ??????????????????????????## | | ????????o?????????????????## = ^ | | ??????????????????????????########+#### ^""" """ | | ??????????????????????????### # """ """ | | ????????????????????????????????????? # """ """ | | ????????????????????????????????????? # """ """ | | ????????????????????????????????????? # """ """ | | ????????????????????????????????????? # | | ??????????????## ???????????????????? # | | ??????????????## ???????????????????? # ###""T"" | | ??????????????## ???????????????????? # ###""""" | | ??????????????## ????????????????????## ######## | | ??????????????## ???????"????????????## ######## | | ??????????????## ?????""########????## ##?????? | | ???????? ###### ### ########????## ##?????? | | ??????? ###### #####+## ????# ####### | | ??????? ???????? ####### | | ?????## ^ ????????? T | | ?????## =% """ ???????? | | ?????## = """ #"????????### | | ?????## = """ #"????????############### | | ?????## [%% #"""""""################# | | ?????## =g! ################?######## | | ?????## ???##"""##### % @%*!!%%!! ##?######## | | ???????????###########+#########== ##?## | | ???????????????? # =*=% ##### """ ##?## | | ???????????????? # = ##??# """ ##?## " | | ???????????????? # ##??# """ ##?## ! " | | ???????????????? # ##??# ##### " | | ???????????????? # [ ##??# + | | ???????????????? # *% ##??############# | | ???????????????? # = ##?????????????## = | | ???????????????? # = %####################### | | ???????????????? ####+####/####################### | | ???? # ?????????##### #### "T" # | | ???? # ????????????## #### # | | ???? + ????????????## #### """ # | | ??? # # ? ???## #### """ + ###### | | ###### #####+####### #### """ # ###### | | ##### #### ####### #### # # ???? | | o ########### # ???? | | " # ???? | | ???## ##+############ + ???? | | ???###??## ######### # ???? | | ????????## ! ## / ###+########+###+##???? | | ????????## ! ## # # ## ##???? | | ????!???## ##"" # < # ## ##???? | | ????????## """ ##"T # # ## ##???? | +----------------------------------------------------+ Best States ------------- Heat Dissipation 25 Energy Generation 10 Energy Capacity 250 Matter Stores 300 Matter Capacity 300 Sight Range 16 Terrain Scan Density 10 Evasion (%) 40 Recoil Reduction 2 Item Schematics ----------------- None Robot Schematics ------------------ None Fabricated ------------ Nothing Repaired ---------- Nothing Studied --------- None Alien Tech Used ----------------- None Achievements -------------- None Challenges ------------ None Game ------ Seed ThermicWaveClaws Manual? 0 Play Time 00:09:30 Cumulative 57.0 hours Start 2026.04.12 @ 20:01:46 End 2026.04.12 @ 20:10:43 Sessions 1 Manual Loads 0 Difficulty Rogue Special Mode None Game No. 97 Rogue 97 Adventurer 0 Explorer 0 Win Type - Total 0 Types 0/0/0/0/0/0/0/0/0/0 Lore% 21 Gallery% 29 Achievement% 24 Wizard Run 0 Options --------- Layout 0 ASCII 0 Keyboard 0 Movement Mouse Keybinds 0 Fullscreen 1 Font 24/Smallcaps Map View 38x25 Zoom Use 100% Tactical HUD 1 Map Filters NONE Filters NONE Steam 1 RUN: 030c7c67-5040-4a63-af6f-4e1a38688b7a